{"text_format":"3","workbook":"xlsx","n_sheets":1,"sheets":["Balance pérdidas y ganancias"],"not_rendered":{"defined_names":2},"read":"whole","date_system":"1900"}

{"sheet":"Balance pérdidas y ganancias","index":0,"n_rows":66,"n_cols":10,"rows_kept":66,"merged":[[10,1,10,9],[18,1,18,9],[27,1,27,9],[42,1,42,9],[48,1,48,9],[62,1,62,9]]}
[null,"Pérdidas y Ganancias Declaración"]
[]
[{"$nulls":3},"PERÍODO ANTERIOR ","PRESUPUESTO ","PERÍODO ACTUAL ",null,"PERÍODO ACTUAL\nCOMO % DE LAS VENTAS ","% DE CAMBIO DEL\nPERÍODO ANTERIOR ","% DE CAMBIO\nDEL PRESUPUESTO "]
[null,"Ganancias por ventas"]
[]
[null,"Producto/Servicio 1",null,40,50,45,null,{"$f":"IFERROR(Ingresosventas[[#This Row],[Período Actual ]]/SUBTOTAL(109,Ingresosventas[[Período Actual ]]),0)","v":{"v":1,"d":"100.0%"}},{"$f":"IFERROR(Ingresosventas[[#This Row],[Período Actual ]]/Ingresosventas[[#This Row],[Período Anterior]]-1,0)","v":{"v":0.125,"d":"12.5%"}},{"$f":"IFERROR(Ingresosventas[[#This Row],[Período Actual ]]/Ingresosventas[[#This Row],[Presupuesto]]-1,0)","v":{"v":-0.09999999999999998,"d":"-10.0%"}}]
[null,"Producto/Servicio 2",{"$nulls":5},{"$f":"IFERROR(Ingresosventas[[#This Row],[Período Actual ]]/SUBTOTAL(109,Ingresosventas[[Período Actual ]]),0)","v":0},{"$f":"IFERROR(Ingresosventas[[#This Row],[Período Actual ]]/Ingresosventas[[#This Row],[Período Anterior]]-1,0)","v":0},{"$f":"IFERROR(Ingresosventas[[#This Row],[Período Actual ]]/Ingresosventas[[#This Row],[Presupuesto]]-1,0)","v":0}]
[null,"Producto/Servicio 3",{"$nulls":5},{"$f":"IFERROR(Ingresosventas[[#This Row],[Período Actual ]]/SUBTOTAL(109,Ingresosventas[[Período Actual ]]),0)","v":0},{"$f":"IFERROR(Ingresosventas[[#This Row],[Período Actual ]]/Ingresosventas[[#This Row],[Período Anterior]]-1,0)","v":0},{"$f":"IFERROR(Ingresosventas[[#This Row],[Período Actual ]]/Ingresosventas[[#This Row],[Presupuesto]]-1,0)","v":0}]
[null,"Producto/Servicio 4",{"$nulls":5},{"$f":"IFERROR(Ingresosventas[[#This Row],[Período Actual ]]/SUBTOTAL(109,Ingresosventas[[Período Actual ]]),0)","v":0},{"$f":"IFERROR(Ingresosventas[[#This Row],[Período Actual ]]/Ingresosventas[[#This Row],[Período Anterior]]-1,0)","v":0},{"$f":"IFERROR(Ingresosventas[[#This Row],[Período Actual ]]/Ingresosventas[[#This Row],[Presupuesto]]-1,0)","v":0}]
[null,"Total",null,{"$f":"SUBTOTAL(109,Ingresosventas[Período Anterior])","v":40},{"$f":"SUBTOTAL(109,Ingresosventas[Presupuesto])","v":50},{"$f":"SUBTOTAL(109,Ingresosventas[[Período Actual ]])","v":45},null,{"$f":"IFERROR(Ingresosventas[[#Totals],[Período Actual ]]/Ingresosventas[[#Totals],[Período Actual ]],0)","v":{"v":1,"d":"100.0%"}},{"$f":"IFERROR(Ingresosventas[[#Totals],[Período Actual ]]/Ingresosventas[[#Totals],[Período Anterior]]-1,0)","v":{"v":0.125,"d":"12.5%"}},{"$f":"IFERROR(Ingresosventas[[#Totals],[Período Actual ]]/Ingresosventas[[#Totals],[Presupuesto]]-1,0)","v":{"v":-0.09999999999999998,"d":"-10.0%"}}]
[]
[null,"Costo de ventas"]
[]
[null,"Producto/Servicio 1",null,null,2,3,null,{"$f":"IFERROR(CosteDeVentas[[#This Row],[Período Actual ]]/SUBTOTAL(109,Ingresosventas[[Período Actual ]]),0)","v":{"v":0.06666666666666667,"d":"6.7%"}},{"$f":"IFERROR(CosteDeVentas[[#This Row],[Período Actual ]]/CosteDeVentas[[#This Row],[Período Anterior]]-1,0)","v":0},{"$f":"IFERROR(CosteDeVentas[[#This Row],[Período Actual ]]/CosteDeVentas[[#This Row],[Presupuesto]]-1,0)","v":{"v":0.5,"d":"50.0%"}}]
[null,"Producto/Servicio 2",null,null,5,3,null,{"$f":"IFERROR(CosteDeVentas[[#This Row],[Período Actual ]]/SUBTOTAL(109,Ingresosventas[[Período Actual ]]),0)","v":{"v":0.06666666666666667,"d":"6.7%"}},{"$f":"IFERROR(CosteDeVentas[[#This Row],[Período Actual ]]/CosteDeVentas[[#This Row],[Período Anterior]]-1,0)","v":0},{"$f":"IFERROR(CosteDeVentas[[#This Row],[Período Actual ]]/CosteDeVentas[[#This Row],[Presupuesto]]-1,0)","v":{"v":-0.4,"d":"-40.0%"}}]
[null,"Producto/Servicio 3",{"$nulls":3},1,null,{"$f":"IFERROR(CosteDeVentas[[#This Row],[Período Actual ]]/SUBTOTAL(109,Ingresosventas[[Período Actual ]]),0)","v":{"v":0.022222222222222223,"d":"2.2%"}},{"$f":"IFERROR(CosteDeVentas[[#This Row],[Período Actual ]]/CosteDeVentas[[#This Row],[Período Anterior]]-1,0)","v":0},{"$f":"IFERROR(CosteDeVentas[[#This Row],[Período Actual ]]/CosteDeVentas[[#This Row],[Presupuesto]]-1,0)","v":0}]
[null,"Producto/Servicio 4",{"$nulls":5},{"$f":"IFERROR(CosteDeVentas[[#This Row],[Período Actual ]]/SUBTOTAL(109,Ingresosventas[[Período Actual ]]),0)","v":0},{"$f":"IFERROR(CosteDeVentas[[#This Row],[Período Actual ]]/CosteDeVentas[[#This Row],[Período Anterior]]-1,0)","v":0},{"$f":"IFERROR(CosteDeVentas[[#This Row],[Período Actual ]]/CosteDeVentas[[#This Row],[Presupuesto]]-1,0)","v":0}]
[null,"Total",null,{"$f":"SUBTOTAL(109,CosteDeVentas[Período Anterior])","v":0},{"$f":"SUBTOTAL(109,CosteDeVentas[Presupuesto])","v":7},{"$f":"SUBTOTAL(109,CosteDeVentas[[Período Actual ]])","v":7},null,{"$f":"IFERROR(CosteDeVentas[[#Totals],[Período Actual ]]/SUBTOTAL(109,Ingresosventas[[Período Actual ]]),0)","v":{"v":0.15555555555555556,"d":"15.6%"}},{"$f":"IFERROR(CosteDeVentas[[#Totals],[Período Actual ]]/CosteDeVentas[[#Totals],[Período Anterior]]-1,0)","v":0},{"$f":"IFERROR(CosteDeVentas[[#Totals],[Período Actual ]]/CosteDeVentas[[#Totals],[Presupuesto]]-1,0)","v":0}]
[]
[null,"Ganancias brutas",null,{"$f":"SUM(Ingresosventas[Período Anterior])-SUM(CosteDeVentas[Período Anterior])","v":40},{"$f":"SUM(Ingresosventas[Presupuesto])-SUM(CosteDeVentas[Presupuesto])","v":43},{"$f":"SUM(Ingresosventas[[Período Actual ]])-SUM(CosteDeVentas[[Período Actual ]])","v":38},null,{"$f":"IFERROR(F20/SUBTOTAL(109,Ingresosventas[[Período Actual ]]),0)","v":{"v":0.8444444444444444,"d":"84.4%"}},{"$f":"IFERROR(F20/D20-1,0)","v":{"v":-0.050000000000000044,"d":"-5.0%"}},{"$f":"IFERROR(F20/E20-1,0)","v":{"v":-0.11627906976744184,"d":"-11.6%"}}]
[]
[null,"Gastos operativos: Ventas y Marketing"]
[]
[null,"Publicidad",null,null,22,19,null,{"$f":"IFERROR(Ventasymarketing[[#This Row],[Período Actual ]]/SUBTOTAL(109,Ingresosventas[[Período Actual ]]),0)","v":{"v":0.4222222222222222,"d":"42.2%"}},{"$f":"IFERROR(Ventasymarketing[[#This Row],[Período Actual ]]/Ventasymarketing[[#This Row],[Período Anterior]]-1,0)","v":0},{"$f":"IFERROR(Ventasymarketing[[#This Row],[Período Actual ]]/Ventasymarketing[[#This Row],[Presupuesto]]-1,0)","v":{"v":-0.13636363636363635,"d":"-13.6%"}}]
[null,"Marketing directo",{"$nulls":5},{"$f":"IFERROR(Ventasymarketing[[#This Row],[Período Actual ]]/SUBTOTAL(109,Ingresosventas[[Período Actual ]]),0)","v":0},{"$f":"IFERROR(Ventasymarketing[[#This Row],[Período Actual ]]/Ventasymarketing[[#This Row],[Período Anterior]]-1,0)","v":0},{"$f":"IFERROR(Ventasymarketing[[#This Row],[Período Actual ]]/Ventasymarketing[[#This Row],[Presupuesto]]-1,0)","v":0}]
[null,"Otros gastos (especifique)",{"$nulls":5},{"$f":"IFERROR(Ventasymarketing[[#This Row],[Período Actual ]]/SUBTOTAL(109,Ingresosventas[[Período Actual ]]),0)","v":0},{"$f":"IFERROR(Ventasymarketing[[#This Row],[Período Actual ]]/Ventasymarketing[[#This Row],[Período Anterior]]-1,0)","v":0},{"$f":"IFERROR(Ventasymarketing[[#This Row],[Período Actual ]]/Ventasymarketing[[#This Row],[Presupuesto]]-1,0)","v":0}]
[null,"Total",null,{"$f":"SUBTOTAL(109,Ventasymarketing[Período Anterior])","v":0},{"$f":"SUBTOTAL(109,Ventasymarketing[Presupuesto])","v":22},{"$f":"SUBTOTAL(109,Ventasymarketing[[Período Actual ]])","v":19},null,{"$f":"IFERROR(Ventasymarketing[[#Totals],[Período Actual ]]/SUBTOTAL(109,Ingresosventas[[Período Actual ]]),0)","v":{"v":0.4222222222222222,"d":"42.2%"}},{"$f":"IFERROR(Ventasymarketing[[#Totals],[Período Actual ]]/Ventasymarketing[[#Totals],[Período Anterior]]-1,0)","v":0},{"$f":"IFERROR(Ventasymarketing[[#Totals],[Período Actual ]]/Ventasymarketing[[#Totals],[Presupuesto]]-1,0)","v":{"v":-0.13636363636363635,"d":"-13.6%"}}]
[]
[null,"Gastos operativos: Generales y Administrativos"]
[]
[null,"Sueldos y salarios",null,null,56,51,null,{"$f":"IFERROR(AdministrativaYGeneral[[#This Row],[Período Actual ]]/SUBTOTAL(109,Ingresosventas[[Período Actual ]]),0)","v":{"v":1.1333333333333333,"d":"113.3%"}},{"$f":"IFERROR(AdministrativaYGeneral[[#This Row],[Período Actual ]]/AdministrativaYGeneral[[#This Row],[Período Anterior]]-1,0)","v":0},{"$f":"IFERROR(AdministrativaYGeneral[[#This Row],[Período Actual ]]/AdministrativaYGeneral[[#This Row],[Presupuesto]]-1,0)","v":{"v":-0.0892857142857143,"d":"-8.9%"}}]
[null,"Servicios externos",{"$nulls":5},{"$f":"IFERROR(AdministrativaYGeneral[[#This Row],[Período Actual ]]/SUBTOTAL(109,Ingresosventas[[Período Actual ]]),0)","v":0},{"$f":"IFERROR(AdministrativaYGeneral[[#This Row],[Período Actual ]]/AdministrativaYGeneral[[#This Row],[Período Anterior]]-1,0)","v":0},{"$f":"IFERROR(AdministrativaYGeneral[[#This Row],[Período Actual ]]/AdministrativaYGeneral[[#This Row],[Presupuesto]]-1,0)","v":0}]
[null,"Suministros",{"$nulls":5},{"$f":"IFERROR(AdministrativaYGeneral[[#This Row],[Período Actual ]]/SUBTOTAL(109,Ingresosventas[[Período Actual ]]),0)","v":0},{"$f":"IFERROR(AdministrativaYGeneral[[#This Row],[Período Actual ]]/AdministrativaYGeneral[[#This Row],[Período Anterior]]-1,0)","v":0},{"$f":"IFERROR(AdministrativaYGeneral[[#This Row],[Período Actual ]]/AdministrativaYGeneral[[#This Row],[Presupuesto]]-1,0)","v":0}]
[null,"Comidas y entretenimiento",{"$nulls":5},{"$f":"IFERROR(AdministrativaYGeneral[[#This Row],[Período Actual ]]/SUBTOTAL(109,Ingresosventas[[Período Actual ]]),0)","v":0},{"$f":"IFERROR(AdministrativaYGeneral[[#This Row],[Período Actual ]]/AdministrativaYGeneral[[#This Row],[Período Anterior]]-1,0)","v":0},{"$f":"IFERROR(AdministrativaYGeneral[[#This Row],[Período Actual ]]/AdministrativaYGeneral[[#This Row],[Presupuesto]]-1,0)","v":0}]
[null,"Alquiler",{"$nulls":5},{"$f":"IFERROR(AdministrativaYGeneral[[#This Row],[Período Actual ]]/SUBTOTAL(109,Ingresosventas[[Período Actual ]]),0)","v":0},{"$f":"IFERROR(AdministrativaYGeneral[[#This Row],[Período Actual ]]/AdministrativaYGeneral[[#This Row],[Período Anterior]]-1,0)","v":0},{"$f":"IFERROR(AdministrativaYGeneral[[#This Row],[Período Actual ]]/AdministrativaYGeneral[[#This Row],[Presupuesto]]-1,0)","v":0}]
[null,"Teléfono",{"$nulls":5},{"$f":"IFERROR(AdministrativaYGeneral[[#This Row],[Período Actual ]]/SUBTOTAL(109,Ingresosventas[[Período Actual ]]),0)","v":0},{"$f":"IFERROR(AdministrativaYGeneral[[#This Row],[Período Actual ]]/AdministrativaYGeneral[[#This Row],[Período Anterior]]-1,0)","v":0},{"$f":"IFERROR(AdministrativaYGeneral[[#This Row],[Período Actual ]]/AdministrativaYGeneral[[#This Row],[Presupuesto]]-1,0)","v":0}]
[null,"Servicios públicos",{"$nulls":5},{"$f":"IFERROR(AdministrativaYGeneral[[#This Row],[Período Actual ]]/SUBTOTAL(109,Ingresosventas[[Período Actual ]]),0)","v":0},{"$f":"IFERROR(AdministrativaYGeneral[[#This Row],[Período Actual ]]/AdministrativaYGeneral[[#This Row],[Período Anterior]]-1,0)","v":0},{"$f":"IFERROR(AdministrativaYGeneral[[#This Row],[Período Actual ]]/AdministrativaYGeneral[[#This Row],[Presupuesto]]-1,0)","v":0}]
[null,"Depreciación",{"$nulls":5},{"$f":"IFERROR(AdministrativaYGeneral[[#This Row],[Período Actual ]]/SUBTOTAL(109,Ingresosventas[[Período Actual ]]),0)","v":0},{"$f":"IFERROR(AdministrativaYGeneral[[#This Row],[Período Actual ]]/AdministrativaYGeneral[[#This Row],[Período Anterior]]-1,0)","v":0},{"$f":"IFERROR(AdministrativaYGeneral[[#This Row],[Período Actual ]]/AdministrativaYGeneral[[#This Row],[Presupuesto]]-1,0)","v":0}]
[null,"Seguro",{"$nulls":5},{"$f":"IFERROR(AdministrativaYGeneral[[#This Row],[Período Actual ]]/SUBTOTAL(109,Ingresosventas[[Período Actual ]]),0)","v":0},{"$f":"IFERROR(AdministrativaYGeneral[[#This Row],[Período Actual ]]/AdministrativaYGeneral[[#This Row],[Período Anterior]]-1,0)","v":0},{"$f":"IFERROR(AdministrativaYGeneral[[#This Row],[Período Actual ]]/AdministrativaYGeneral[[#This Row],[Presupuesto]]-1,0)","v":0}]
[null,"Reparaciones y mantenimiento",{"$nulls":5},{"$f":"IFERROR(AdministrativaYGeneral[[#This Row],[Período Actual ]]/SUBTOTAL(109,Ingresosventas[[Período Actual ]]),0)","v":0},{"$f":"IFERROR(AdministrativaYGeneral[[#This Row],[Período Actual ]]/AdministrativaYGeneral[[#This Row],[Período Anterior]]-1,0)","v":0},{"$f":"IFERROR(AdministrativaYGeneral[[#This Row],[Período Actual ]]/AdministrativaYGeneral[[#This Row],[Presupuesto]]-1,0)","v":0}]
[null,"Otros gastos (especifique)",{"$nulls":5},{"$f":"IFERROR(AdministrativaYGeneral[[#This Row],[Período Actual ]]/SUBTOTAL(109,Ingresosventas[[Período Actual ]]),0)","v":0},{"$f":"IFERROR(AdministrativaYGeneral[[#This Row],[Período Actual ]]/AdministrativaYGeneral[[#This Row],[Período Anterior]]-1,0)","v":0},{"$f":"IFERROR(AdministrativaYGeneral[[#This Row],[Período Actual ]]/AdministrativaYGeneral[[#This Row],[Presupuesto]]-1,0)","v":0}]
[null,"Total",null,{"$f":"SUBTOTAL(109,AdministrativaYGeneral[Período Anterior])","v":0},{"$f":"SUBTOTAL(109,AdministrativaYGeneral[Presupuesto])","v":56},{"$f":"SUBTOTAL(109,AdministrativaYGeneral[[Período Actual ]])","v":51},null,{"$f":"IFERROR(AdministrativaYGeneral[[#Totals],[Período Actual ]]/SUBTOTAL(109,Ingresosventas[[Período Actual ]]),0)","v":{"v":1.1333333333333333,"d":"113.3%"}},{"$f":"IFERROR(AdministrativaYGeneral[[#Totals],[Período Actual ]]/AdministrativaYGeneral[[#Totals],[Período Anterior]]-1,0)","v":0},{"$f":"IFERROR(AdministrativaYGeneral[[#Totals],[Período Actual ]]/AdministrativaYGeneral[[#Totals],[Presupuesto]]-1,0)","v":{"v":-0.0892857142857143,"d":"-8.9%"}}]
[]
[null,"Gastos operativos: Otros"]
[]
[null,"Otros gastos operativos 1",null,null,10,null,null,{"$f":"IFERROR(Otrosgastosoperativoscategoría[[#This Row],[Período Actual ]]/SUBTOTAL(109,Ingresosventas[[Período Actual ]]),0)","v":0},{"$f":"IFERROR(Otrosgastosoperativoscategoría[[#This Row],[Período Actual ]]/Otrosgastosoperativoscategoría[[#This Row],[Prior Period]]-1,0)","v":0},{"$f":"IFERROR(Otrosgastosoperativoscategoría[[#This Row],[Período Actual ]]/Otrosgastosoperativoscategoría[[#This Row],[Presupuesto]]-1,0)","v":{"v":-1,"d":"-100.0%"}}]
[null,"Otros gastos operativos 2",{"$nulls":5},{"$f":"IFERROR(Otrosgastosoperativoscategoría[[#This Row],[Período Actual ]]/SUBTOTAL(109,Ingresosventas[[Período Actual ]]),0)","v":0},{"$f":"IFERROR(Otrosgastosoperativoscategoría[[#This Row],[Período Actual ]]/Otrosgastosoperativoscategoría[[#This Row],[Prior Period]]-1,0)","v":0},{"$f":"IFERROR(Otrosgastosoperativoscategoría[[#This Row],[Período Actual ]]/Otrosgastosoperativoscategoría[[#This Row],[Presupuesto]]-1,0)","v":0}]
[null,"Total",null,{"$f":"SUBTOTAL(109,Otrosgastosoperativoscategoría[Prior Period])","v":0},{"$f":"SUBTOTAL(109,Otrosgastosoperativoscategoría[Presupuesto])","v":10},{"$f":"SUBTOTAL(109,Otrosgastosoperativoscategoría[[Período Actual ]])","v":0},null,{"$f":"IFERROR(Otrosgastosoperativoscategoría[[#Totals],[Período Actual ]]/SUBTOTAL(109,Ingresosventas[[Período Actual ]]),0)","v":0},{"$f":"IFERROR(Otrosgastosoperativoscategoría[[#Totals],[Período Actual ]]/Otrosgastosoperativoscategoría[[#Totals],[Prior Period]]-1,0)","v":0},{"$f":"IFERROR(Otrosgastosoperativoscategoría[[#Totals],[Período Actual ]]/Otrosgastosoperativoscategoría[[#Totals],[Presupuesto]]-1,0)","v":{"v":-1,"d":"-100.0%"}}]
[]
[null,"Gastos operativos totales",null,{"$f":"SUM(Ventasymarketing[Período Anterior],AdministrativaYGeneral[Período Anterior],Otrosgastosoperativoscategoría[Prior Period])","v":0},{"$f":"SUM(Ventasymarketing[Presupuesto],AdministrativaYGeneral[Presupuesto],Otrosgastosoperativoscategoría[Presupuesto])","v":88},{"$f":"SUM(Ventasymarketing[[Período Actual ]],AdministrativaYGeneral[[Período Actual ]],Otrosgastosoperativoscategoría[[Período Actual ]])","v":70},null,{"$f":"IFERROR(F50/SUBTOTAL(109,Ingresosventas[[Período Actual ]]),0)","v":{"v":1.5555555555555556,"d":"155.6%"}},{"$f":"IFERROR(F50/D50-1,0)","v":0},{"$f":"IFERROR(F50/E50-1,0)","v":{"v":-0.20454545454545459,"d":"-20.5%"}}]
[]
[null,"Ingresos por operaciones",null,{"$f":"D20-D50","v":40},{"$f":"E20-E50","v":-45},{"$f":"F20-F50","v":-32},null,{"$f":"IFERROR(F52/SUBTOTAL(109,Ingresosventas[[Período Actual ]]),0)","v":{"v":-0.7111111111111111,"d":"-71.1%"}},{"$f":"IFERROR(IF(D52=F52,0,IF(F52>D52,ABS((F52/D52)-1),IF(AND(F52<D52,D52<0),-((F52/D52)-1),(F52/D52)-1))),0)","v":{"v":-1.8,"d":"-180.0%"}},{"$f":"IFERROR(IF(E52=F52,0,IF(F52>E52,ABS((F52/E52)-1),IF(AND(F52<E52,E52<0),-((F52/E52)-1),(F52/E52)-1))),0)","v":{"v":0.28888888888888886,"d":"28.9%"}}]
[]
[null,"Otros ingresos",{"$nulls":5},{"$f":"IFERROR(F54/SUBTOTAL(109,Ingresosventas[[Período Actual ]]),0)","v":0},{"$f":"IFERROR(F54/D54-1,0)","v":0},{"$f":"IFERROR(F54/E54-1,0)","v":0}]
[]
[null,"Impuestos"]
[]
[null,"Impuestos por ingresos",null,null,32,30,null,{"$f":"IFERROR(Impuestos[[#This Row],[Período Actual ]]/SUBTOTAL(109,Ingresosventas[[Período Actual ]]),0)","v":{"v":0.6666666666666666,"d":"66.7%"}},{"$f":"IFERROR(Impuestos[[#This Row],[Período Actual ]]/Impuestos[[#This Row],[Período Anterior]]-1,0)","v":0},{"$f":"IFERROR(Impuestos[[#This Row],[Período Actual ]]/Impuestos[[#This Row],[Presupuesto]]-1,0)","v":{"v":-0.0625,"d":"-6.3%"}}]
[null,"Impuestos por personal",{"$nulls":5},{"$f":"IFERROR(Impuestos[[#This Row],[Período Actual ]]/SUBTOTAL(109,Ingresosventas[[Período Actual ]]),0)","v":0},{"$f":"IFERROR(Impuestos[[#This Row],[Período Actual ]]/Impuestos[[#This Row],[Período Anterior]]-1,0)","v":0},{"$f":"IFERROR(Impuestos[[#This Row],[Período Actual ]]/Impuestos[[#This Row],[Presupuesto]]-1,0)","v":0}]
[null,"Impuestos por bienes raíces",{"$nulls":5},{"$f":"IFERROR(Impuestos[[#This Row],[Período Actual ]]/SUBTOTAL(109,Ingresosventas[[Período Actual ]]),0)","v":0},{"$f":"IFERROR(Impuestos[[#This Row],[Período Actual ]]/Impuestos[[#This Row],[Período Anterior]]-1,0)","v":0},{"$f":"IFERROR(Impuestos[[#This Row],[Período Actual ]]/Impuestos[[#This Row],[Presupuesto]]-1,0)","v":0}]
[null,"Otros impuestos (especifique)",{"$nulls":5},{"$f":"IFERROR(Impuestos[[#This Row],[Período Actual ]]/SUBTOTAL(109,Ingresosventas[[Período Actual ]]),0)","v":0},{"$f":"IFERROR(Impuestos[[#This Row],[Período Actual ]]/Impuestos[[#This Row],[Período Anterior]]-1,0)","v":0},{"$f":"IFERROR(Impuestos[[#This Row],[Período Actual ]]/Impuestos[[#This Row],[Presupuesto]]-1,0)","v":0}]
[null,"Total",null,{"$f":"SUBTOTAL(109,Impuestos[Período Anterior])","v":0},{"$f":"SUBTOTAL(109,Impuestos[Presupuesto])","v":32},{"$f":"SUBTOTAL(109,Impuestos[[Período Actual ]])","v":30},null,{"$f":"IFERROR(Impuestos[[#Totals],[Período Actual ]]/SUBTOTAL(109,Ingresosventas[[Período Actual ]]),0)","v":{"v":0.6666666666666666,"d":"66.7%"}},{"$f":"IFERROR(Impuestos[[#Totals],[Período Actual ]]/Impuestos[[#Totals],[Período Anterior]]-1,0)","v":0},{"$f":"IFERROR(Impuestos[[#Totals],[Período Actual ]]/Impuestos[[#Totals],[Presupuesto]]-1,0)","v":{"v":-0.0625,"d":"-6.3%"}}]
[]
[null,"Ganancias netas",null,{"$f":"D52+D54-Impuestos[[#Totals],[Período Anterior]]","v":40},{"$f":"E52+E54-Impuestos[[#Totals],[Período Anterior]]","v":-45},{"$f":"F52+F54-Impuestos[[#Totals],[Período Anterior]]","v":-32},null,{"$f":"IFERROR(F64/SUBTOTAL(109,Ingresosventas[[Período Actual ]]),0)","v":{"v":-0.7111111111111111,"d":"-71.1%"}},{"$f":"IFERROR(IF(D64=F64,0,IF(F64>D64,ABS((F64/D64)-1),IF(AND(F64<D64,D64<0),-((F64/D64)-1),(F64/D64)-1))),0)","v":{"v":-1.8,"d":"-180.0%"}},{"$f":"IFERROR(IF(E64=F64,0,IF(F64>E64,ABS((F64/E64)-1),IF(AND(F64<E64,E64<0),-((F64/E64)-1),(F64/E64)-1))),0)","v":{"v":0.28888888888888886,"d":"28.9%"}}]
[null,"Margen bruto",null,{"$f":"D20/SUM(Ingresosventas[Período Anterior])","v":{"v":1,"d":"100.0%"}},{"$f":"E20/SUM(Ingresosventas[Presupuesto])","v":{"v":0.86,"d":"86.0%"}},{"$f":"F20/SUM(Ingresosventas[[Período Actual ]])","v":{"v":0.8444444444444444,"d":"84.4%"}}]
[null,"Ganancias por ventas",null,{"$f":"D64/SUM(Ingresosventas[Período Anterior])","v":{"v":1,"d":"100.0%"}},{"$f":"E64/SUM(Ingresosventas[Presupuesto])","v":{"v":-0.9,"d":"-90.0%"}},{"$f":"F64/SUM(Ingresosventas[[Período Actual ]])","v":{"v":-0.7111111111111111,"d":"-71.1%"}}]